fUST/lending_fUST_20250930
["ID","MTS","AMOUNT","RATE_DAILY","PERIOD"]
[388577655,1759245059693,-567.53,0.00021369,2]
[388577656,1759245059701,-1342.87,0.00021369,2]
[388577657,1759245059710,-2022.65,0.00021369,2]
[388577658,1759245059720,-1527.54,0.00021369,2]
[388577659,1759245059729,-500.0,0.00021369,2]
[388577660,1759245059740,-500.0,0.00021369,2]
[388577661,1759245059749,-529.15,0.00021369,2]
[388577662,1759245059758,-500.0,0.00021369,2]
[388577663,1759245059768,-500.0,0.00021369,2]
[388577664,1759245059776,-615.54,0.00021369,2]
[388577665,1759245059786,-2819.35,0.00021369,2]
[388577666,1759245059796,-500.0,0.00021369,2]
[388577667,1759245059807,-500.0,0.00021369,2]
[388577668,1759245059817,-500.0,0.00021369,2]
[388577669,1759245059826,-500.0,0.00021369,2]
[388577670,1759245059835,-824.81,0.00021369,2]
[388577671,1759245059844,-500.0,0.00021369,2]
[388577672,1759245059853,-500.0,0.00021369,2]
[388577673,1759245059863,-747.27,0.00021369,2]
[388577674,1759245059873,-500.0,0.00021369,2]
[388577675,1759245059882,-754.71,0.00021369,2]
[388577676,1759245059891,-500.0,0.00021369,2]
[388577677,1759245059901,-670.53,0.00021369,2]
[388577678,1759245059911,-1983.65,0.00021369,2]
[388577679,1759245059921,-803.43,0.00021369,2]
[388577680,1759245059931,-500.0,0.00021369,2]
[388577681,1759245059940,-688.46,0.00021369,2]
[388577682,1759245059951,-538.24,0.00021369,2]
[388577683,1759245059965,-679.98,0.00021369,2]
[388577684,1759245059974,-500.0,0.00021369,2]
[388577685,1759245059984,-589.27,0.00021369,2]
[388577686,1759245059993,-500.0,0.00021369,2]
[388577687,1759245060004,-535.7,0.00021369,2]
[388577688,1759245060013,-1820.42,0.00021369,2]
[388577689,1759245060023,-2007.42,0.00021369,2]
[388577690,1759245060033,-793.47,0.00021369,2]
[388577691,1759245060043,-2768.25,0.00021369,2]
[388577692,1759245060054,-1506.48,0.00021369,2]
[388577693,1759245060064,-500.0,0.00021369,2]
[388577694,1759245060074,-1157.75,0.00021369,2]
[388577695,1759245060084,-629.43,0.00021369,2]
[388577696,1759245060094,-500.0,0.00021369,2]
[388577697,1759245060103,-1285.01,0.00021369,2]
[388577698,1759245060112,-501.17,0.00021369,2]
[388577699,1759245060122,-500.0,0.00021369,2]
[388577700,1759245060131,-500.0,0.00021369,2]
[388577701,1759245060141,-500.0,0.00021369,2]
[388577702,1759245060151,-500.0,0.00021369,2]
[388577703,1759245060160,-500.0,0.00021369,2]
[388577704,1759245060170,-733.74,0.00021369,2]
[388577705,1759245060179,-1788.96,0.00021369,2]
[388577706,1759245060189,-1345.69,0.00021369,2]
[388577707,1759245060200,-1291.55,0.00021369,2]
[388577708,1759245060210,-500.0,0.00021369,2]
[388577709,1759245060219,-500.0,0.00021369,2]
[388577710,1759245060229,-500.0,0.00021369,2]
[388577711,1759245060238,-1166.68,0.00021369,2]
[388577712,1759245060248,-1602.97,0.00021369,2]
[388577713,1759245060258,-775.21,0.00021369,2]
[388577714,1759245060268,-832.21,0.00021369,2]
[388577715,1759245060278,-500.0,0.00021369,2]
[388577716,1759245060287,-829.71,0.00021369,2]
[388577717,1759245060297,-805.26,0.00021369,2]
[388577718,1759245060309,-856.35,0.00021369,2]
[388577719,1759245060318,-500.0,0.00021369,2]
[388577720,1759245060328,-500.0,0.00021369,2]
[388577721,1759245060338,-500.0,0.00021369,2]
[388577722,1759245060347,-155.0,0.00021396,2]
[388577723,1759245060357,-151.0,0.000214,4]
[388577724,1759245060367,-1000.0,0.00021421,2]
[388577725,1759245060376,-1000.0,0.00021421,2]
[388577726,1759245060386,-500.0,0.00021421,2]
[388577727,1759245060395,-1000.0,0.00021421,2]
[388577728,1759245060405,-552.93017076,0.00021421,2]
[388577729,1759245060414,-309.00139026,0.00021421,2]
[388577730,1759245060424,-575.21749201,0.00021421,2]
[388577731,1759245060433,-503.54277458,0.00021421,2]
[388577732,1759245060443,-1000.0,0.00021421,2]
[388577733,1759245060453,-1000.0,0.00021421,2]
[388577734,1759245060463,-1004.43716036,0.00021421,2]
[388577735,1759245060473,-167.41366945,0.00021421,2]
[388577736,1759245060482,-1356622.6890452,0.0002152,2]
[388577737,1759245060492,-151.0,0.000216,4]
[388577738,1759245060503,-1237.54770387,0.00021616,2]
[388577739,1759245060512,-500.0,0.00021642,2]
[388577740,1759245060522,-806.91,0.00021642,2]
[388577741,1759245060531,-2165.41,0.00021642,2]
[388577742,1759245060542,-1302.12,0.00021642,2]
[388577743,1759245060552,-506.04,0.00021642,2]
[388577744,1759245060565,-524.03,0.00021642,2]
[388577745,1759245060576,-512.5,0.00021642,2]
[388577746,1759245060586,-500.0,0.00021642,2]
[388577747,1759245060598,-676.76,0.00021642,2]
[388577748,1759245060608,-500.0,0.00021642,2]
[388577749,1759245060618,-638.75,0.00021642,2]
[388577750,1759245060628,-1451.45,0.00021642,2]
[388577751,1759245060639,-500.0,0.00021642,2]
[388577752,1759245060648,-500.0,0.00021642,2]
[388577753,1759245060658,-1040.15,0.00021642,2]
[388577754,1759245060669,-500.0,0.00021642,2]
[388577755,1759245060679,-840.66,0.00021642,2]
[388577756,1759245060688,-847.46,0.00021642,2]
[388577757,1759245060698,-1156.03,0.00021642,2]
[388577758,1759245060709,-968.54,0.00021642,2]
[388577759,1759245060719,-1518.72,0.00021642,2]
[388577760,1759245060729,-500.0,0.00021642,2]
[388577761,1759245060743,-1453.1,0.00021642,2]
[388577762,1759245060752,-544.93,0.00021642,2]
[388577763,1759245060762,-518.44,0.00021642,2]
[388577764,1759245060772,-1051.04,0.00021642,2]
[388577765,1759245060783,-500.0,0.00021642,2]
[388577766,1759245060792,-2303.03,0.00021642,2]
[388577767,1759245060802,-500.0,0.00021643,2]
[388577768,1759245060817,-500.0,0.00021643,2]
[388577769,1759245060826,-208.11203779,0.00021643,2]
[388577770,1759245060836,-500.0,0.00021643,2]
[388577771,1759245060846,-222.81906499,0.00021643,2]
[388577772,1759245060938,-329.92800727,0.00021643,2]
[388577773,1759245060948,-652.36,0.00021643,2]
[388577774,1759245060959,-731.2,0.00021643,2]
[388577775,1759245060968,-740.62,0.00021643,2]
[388577776,1759245060979,-500.0,0.00021643,2]
[388577777,1759245060988,-500.0,0.00021643,2]
[388577778,1759245060998,-500.0,0.00021643,2]
[388577779,1759245061008,-834.81,0.00021643,2]
[388577780,1759245061017,-500.0,0.00021643,2]
[388577781,1759245061027,-2266.48,0.00021643,2]
[388577782,1759245061036,-500.0,0.00021643,2]
[388577783,1759245061046,-500.0,0.00021643,2]
[388577784,1759245061058,-533.03,0.00021643,2]
[388577785,1759245061067,-522.16,0.00021643,2]
[388577786,1759245061077,-1168.74,0.00021643,2]
[388577787,1759245061087,-653.75,0.00021643,2]
[388577788,1759245061097,-500.0,0.00021643,2]
[388577789,1759245061107,-500.0,0.00021643,2]
[388577790,1759245061117,-500.0,0.00021643,2]
[388577791,1759245061126,-970.84,0.00021643,2]
[388577792,1759245061135,-1580.86,0.00021643,2]
[388577793,1759245061145,-645.03833008,0.00021643,2]
[388577794,1759245061154,-500.0,0.00021643,2]
[388577795,1759245061164,-500.0,0.00021643,2]
[388577796,1759245061173,-1807.02,0.00021643,2]
[388577797,1759245061184,-654.09,0.00021643,2]
[388577798,1759245061193,-500.0,0.00021643,2]
[388577799,1759245061203,-2511.69,0.00021643,2]
[388577800,1759245061212,-500.0,0.00021643,2]
[388577801,1759245061223,-500.0,0.00021643,2]
[388577802,1759245061234,-567.53,0.00021643,2]
[388577803,1759245061244,-1342.87,0.00021643,2]
[388577804,1759245061254,-2022.65,0.00021643,2]
[388577805,1759245061265,-1527.54,0.00021643,2]
[388577806,1759245061276,-500.0,0.00021643,2]
[388577807,1759245061286,-500.0,0.00021643,2]
[388577808,1759245061295,-529.15,0.00021643,2]
[388577809,1759245061305,-500.0,0.00021643,2]
[388577810,1759245061314,-500.0,0.00021643,2]
[388577811,1759245061324,-615.54,0.00021643,2]
[388577812,1759245061334,-2819.35,0.00021643,2]
[388577813,1759245061343,-500.0,0.00021643,2]
[388577814,1759245061353,-500.0,0.00021643,2]
[388577815,1759245061362,-500.0,0.00021643,2]
[388577816,1759245061371,-500.0,0.00021643,2]
[388577817,1759245061381,-824.81,0.00021643,2]
[388577818,1759245061390,-500.0,0.00021643,2]
[388577819,1759245061399,-500.0,0.00021643,2]
[388577820,1759245061408,-747.27,0.00021643,2]
[388577821,1759245061418,-625.67337095,0.00021643,2]
[388577822,1759245061427,-754.71,0.00021643,2]
[388577823,1759245061437,-500.0,0.00021643,2]
[388577824,1759245061446,-670.53,0.00021643,2]
[388577825,1759245061456,-1983.65,0.00021643,2]
[388577826,1759245061467,-803.43,0.00021643,2]
[388577827,1759245061476,-500.0,0.00021643,2]
[388577828,1759245061486,-688.46,0.00021643,2]
[388577829,1759245061496,-538.24,0.00021643,2]
[388577830,1759245061506,-679.98,0.00021643,2]
[388577831,1759245061515,-500.0,0.00021643,2]
[388577832,1759245061525,-589.27,0.00021643,2]
[388577833,1759245061536,-500.0,0.00021643,2]
[388577834,1759245061547,-535.7,0.00021643,2]
[388577835,1759245061558,-1820.42,0.00021643,2]
[388577836,1759245061567,-2007.42,0.00021643,2]
[388577837,1759245061577,-793.47,0.00021643,2]
[388577838,1759245061587,-2768.25,0.00021643,2]
[388577839,1759245061597,-1506.48,0.00021643,2]
[388577840,1759245061607,-1157.75,0.00021643,2]
[388577841,1759245061616,-629.43,0.00021643,2]
[388577842,1759245061626,-500.0,0.00021643,2]
[388577843,1759245061635,-1285.01,0.00021643,2]
[388577844,1759245061645,-501.17,0.00021643,2]
[388577845,1759245061655,-500.0,0.00021643,2]
[388577846,1759245061664,-500.0,0.00021643,2]
[388577847,1759245061674,-500.0,0.00021643,2]
[388577848,1759245061684,-189.54306549,0.00021643,2]
[388577849,1759245061693,-500.0,0.00021643,2]
[388577850,1759245061703,-733.74,0.00021643,2]
[388577851,1759245061712,-1788.96,0.00021643,2]
[388577852,1759245061722,-1345.69,0.00021643,2]
[388577853,1759245061732,-1291.55,0.00021643,2]
[388577854,1759245061744,-500.0,0.00021643,2]
[388577855,1759245061754,-500.0,0.00021643,2]
[388577856,1759245061763,-500.0,0.00021643,2]
[388577857,1759245061773,-1166.68,0.00021643,2]
[388577858,1759245061783,-1602.97,0.00021643,2]
[388577859,1759245061793,-775.21,0.00021643,2]
[388577860,1759245061804,-832.21,0.00021643,2]
[388577861,1759245061815,-500.0,0.00021643,2]
[388577862,1759245061825,-829.71,0.00021643,2]
[388577863,1759245061836,-805.26,0.00021643,2]
[388577864,1759245061846,-856.35,0.00021643,2]
[388577865,1759245061856,-500.0,0.00021643,2]
[388577866,1759245061866,-500.0,0.00021643,2]
[388577867,1759245061876,-500.0,0.00021643,2]
[388577868,1759245061885,-500.0,0.00021646,2]
[388577869,1759245061895,-1500.0,0.00021668,2]
[388577870,1759245061904,-1500.0,0.00021668,2]
[388577871,1759245061913,-509.39889449,0.00021668,2]
[388577872,1759245061923,-1500.0,0.00021668,2]
[388577873,1759245061933,-1500.0,0.00021668,2]
[388577874,1759245061943,-1500.0,0.00021668,2]
[388577875,1759245061953,-1324.6396608,0.00021668,2]
[388577876,1759245061962,-1005.01268871,0.00021668,2]
[388577877,1759245061973,-239.54850023,0.00021668,2]
[388577878,1759245061982,-215.98111186,0.00021668,2]
[388577879,1759245061992,-179.64445148,0.00021668,2]
[388577880,1759245062002,-1500.0,0.00021668,2]
[388577881,1759245062011,-151.0,0.000219,4]
[388577882,1759245062021,-322.0,0.00021903,2]
[388577883,1759245062030,-500.0,0.00021916,2]
[388577884,1759245062039,-806.91,0.00021916,2]
[388577885,1759245062049,-2165.41,0.00021916,2]
[388577886,1759245062061,-1302.12,0.00021916,2]
[388577887,1759245062071,-506.04,0.00021916,2]
[388577888,1759245062080,-524.03,0.00021916,2]
[388577889,1759245062090,-512.5,0.00021916,2]
[388577890,1759245062100,-500.0,0.00021916,2]
[388577891,1759245062109,-676.76,0.00021916,2]
[388577892,1759245062118,-500.0,0.00021916,2]
[388577893,1759245062128,-638.75,0.00021916,2]
[388577894,1759245062137,-1451.45,0.00021916,2]
[388577895,1759245062146,-500.0,0.00021916,2]
[388577896,1759245062156,-500.0,0.00021916,2]
[388577897,1759245062165,-1040.15,0.00021916,2]
[388577898,1759245062180,-500.0,0.00021916,2]
[388577899,1759245062195,-840.66,0.00021916,2]
[388577900,1759245062205,-847.46,0.00021916,2]
[388577901,1759245062215,-1156.03,0.00021916,2]
[388577902,1759245062224,-968.54,0.00021916,2]
[388577903,1759245062234,-1518.72,0.00021916,2]
[388577904,1759245062243,-500.0,0.00021916,2]
[388577905,1759245062254,-1453.1,0.00021916,2]
[388577906,1759245062263,-544.93,0.00021916,2]
[388577907,1759245062273,-518.44,0.00021916,2]
[388577908,1759245062283,-1051.04,0.00021916,2]
[388577909,1759245062292,-500.0,0.00021916,2]
[388577910,1759245062301,-2303.03,0.00021916,2]
[388577911,1759245062314,-2000.0,0.00021916,2]
[388577912,1759245062324,-500.0,0.00021917,2]
[388577913,1759245062334,-500.0,0.00021917,2]
[388577914,1759245062343,-500.0,0.00021917,2]
[388577915,1759245062353,-652.36,0.00021917,2]
[388577916,1759245062362,-731.2,0.00021917,2]
[388577917,1759245062371,-740.62,0.00021917,2]
[388577918,1759245062380,-500.0,0.00021917,2]
[388577919,1759245062390,-500.0,0.00021917,2]
[388577920,1759245062399,-834.81,0.00021917,2]
[388577921,1759245062409,-500.0,0.00021917,2]
[388577922,1759245062418,-2266.48,0.00021917,2]
[388577923,1759245062427,-500.0,0.00021917,2]
[388577924,1759245062437,-500.0,0.00021917,2]
[388577925,1759245062447,-533.03,0.00021917,2]
[388577926,1759245062456,-522.16,0.00021917,2]
[388577927,1759245062466,-1168.74,0.00021917,2]
[388577928,1759245062476,-653.75,0.00021917,2]
[388577929,1759245062487,-500.0,0.00021917,2]
[388577930,1759245062497,-500.0,0.00021917,2]
[388577931,1759245062508,-500.0,0.00021917,2]
[388577932,1759245062518,-970.84,0.00021917,2]
[388577933,1759245062528,-1580.86,0.00021917,2]
[388577934,1759245062537,-500.0,0.00021917,2]
[388577935,1759245062547,-500.0,0.00021917,2]
[388577936,1759245062560,-1807.02,0.00021917,2]
[388577937,1759245062569,-654.09,0.00021917,2]
[388577938,1759245062580,-500.0,0.00021917,2]
[388577939,1759245062589,-2511.69,0.00021917,2]
[388577940,1759245062599,-500.0,0.00021917,2]
[388577941,1759245062609,-500.0,0.00021917,2]
[388577942,1759245062620,-567.53,0.00021917,2]
[388577943,1759245062750,-1342.87,0.00021917,2]
[388577944,1759245062760,-2022.65,0.00021917,2]
[388577945,1759245062769,-1527.54,0.00021917,2]
[388577946,1759245062783,-500.0,0.00021917,2]
[388577947,1759245062793,-500.0,0.00021917,2]
[388577948,1759245062803,-529.15,0.00021917,2]
[388577949,1759245062818,-500.0,0.00021917,2]
[388577950,1759245062828,-500.0,0.00021917,2]
[388577951,1759245062838,-615.54,0.00021917,2]
[388577952,1759245062848,-2819.35,0.00021917,2]
[388577953,1759245062859,-500.0,0.00021917,2]
[388577954,1759245062868,-500.0,0.00021917,2]
[388577955,1759245062877,-500.0,0.00021917,2]
[388577956,1759245062887,-500.0,0.00021917,2]
[388577957,1759245062897,-824.81,0.00021917,2]
[388577958,1759245062906,-500.0,0.00021917,2]
[388577959,1759245062916,-500.0,0.00021917,2]
[388577960,1759245062925,-747.27,0.00021917,2]
[388577961,1759245062934,-754.71,0.00021917,2]
[388577962,1759245062943,-500.0,0.00021917,2]
[388577963,1759245062952,-670.53,0.00021917,2]
[388577964,1759245062963,-1983.65,0.00021917,2]
[388577965,1759245062973,-803.43,0.00021917,2]
[388577966,1759245062982,-500.0,0.00021917,2]
[388577967,1759245062992,-688.46,0.00021917,2]
[388577968,1759245063001,-538.24,0.00021917,2]
[388577969,1759245063010,-679.98,0.00021917,2]
[388577970,1759245063020,-500.0,0.00021917,2]
[388577971,1759245063030,-589.27,0.00021917,2]
[388577972,1759245063040,-500.0,0.00021917,2]
[388577973,1759245063050,-535.7,0.00021917,2]
[388577974,1759245063065,-1820.42,0.00021917,2]
[388577975,1759245063075,-2007.42,0.00021917,2]
[388577976,1759245063085,-793.47,0.00021917,2]
[388577977,1759245063095,-2768.25,0.00021917,2]
[388577978,1759245063105,-1506.48,0.00021917,2]
[388577979,1759245063114,-1157.75,0.00021917,2]
[388577980,1759245063125,-629.43,0.00021917,2]
[388577981,1759245063135,-500.0,0.00021917,2]
[388577982,1759245063144,-1285.01,0.00021917,2]
[388577983,1759245063154,-501.17,0.00021917,2]
[388577984,1759245063166,-304.16706925,0.00021917,2]
[388577985,1759245063176,-500.0,0.00021917,2]
[388577986,1759245063185,-500.0,0.00021917,2]
[388577987,1759245063195,-500.0,0.00021917,2]
[388577988,1759245063204,-733.74,0.00021917,2]
[388577989,1759245063214,-1788.96,0.00021917,2]
[388577990,1759245063224,-1345.69,0.00021917,2]
[388577991,1759245063234,-1291.55,0.00021917,2]
[388577992,1759245063243,-500.0,0.00021917,2]
[388577993,1759245063257,-500.0,0.00021917,2]
[388577994,1759245063267,-500.0,0.00021917,2]
[388577995,1759245063277,-1166.68,0.00021917,2]
[388577996,1759245063287,-1602.97,0.00021917,2]
[388577997,1759245063297,-775.21,0.00021917,2]
[388577998,1759245063310,-832.21,0.00021917,2]
[388577999,1759245063320,-500.0,0.00021917,2]
[388578000,1759245063331,-829.71,0.00021917,2]
[388578001,1759245063341,-805.26,0.00021917,2]
[388578002,1759245063351,-856.35,0.00021917,2]
[388578003,1759245063361,-500.0,0.00021917,2]
[388578004,1759245063371,-500.0,0.00021917,2]
[388578005,1759245063381,-500.0,0.00021917,2]
[388578006,1759245063390,-150.0,0.00021918,2]
[388578007,1759245063400,-1546.22359938,0.00021968,2]
[388578008,1759245063410,-1500.0,0.00021968,2]
[388578009,1759245063420,-1105.85078569,0.00021968,2]
[388578010,1759245063429,-1505.68555188,0.00021968,2]
[388578011,1759245063439,-1342.75030448,0.00021968,2]
[388578012,1759245063449,-155.0,0.00021999,2]
[388578013,1759245063460,-3787.67,0.00022,2]
[388578014,1759245063469,-288.0,0.00022,2]
[388578015,1759245063480,-500.0,0.0002219,2]
[388578016,1759245063490,-806.91,0.0002219,2]
[388578017,1759245063501,-2165.41,0.0002219,2]
[388578018,1759245063511,-1302.12,0.0002219,2]
[388578019,1759245063521,-506.04,0.0002219,2]
[388578020,1759245063531,-524.03,0.0002219,2]
[388578021,1759245063542,-512.5,0.0002219,2]
[388578022,1759245063552,-500.0,0.0002219,2]
[388578023,1759245063565,-676.76,0.0002219,2]
[388578024,1759245063574,-500.0,0.0002219,2]
[388578025,1759245063584,-638.75,0.0002219,2]
[388578026,1759245063594,-1451.45,0.0002219,2]
[388578027,1759245063603,-500.0,0.0002219,2]
[388578028,1759245063613,-500.0,0.0002219,2]
[388578029,1759245063622,-1040.15,0.0002219,2]
[388578030,1759245063631,-500.0,0.0002219,2]
[388578031,1759245063642,-840.66,0.0002219,2]
[388578032,1759245063652,-847.46,0.0002219,2]
[388578033,1759245063663,-1156.03,0.0002219,2]
[388578034,1759245063673,-968.54,0.0002219,2]
[388578035,1759245063683,-1518.72,0.0002219,2]
[388578036,1759245063693,-500.0,0.0002219,2]
[388578037,1759245063703,-1453.1,0.0002219,2]
[388578038,1759245063713,-544.93,0.0002219,2]
[388578039,1759245063723,-518.44,0.0002219,2]
[388578040,1759245063733,-1051.04,0.0002219,2]
[388578041,1759245063748,-500.0,0.0002219,2]
[388578042,1759245063758,-2303.03,0.0002219,2]
[388578043,1759245063767,-500.0,0.00022191,2]
[388578044,1759245063777,-500.0,0.00022191,2]
[388578045,1759245063787,-576.82262396,0.00022191,2]
[388578046,1759245063796,-652.36,0.00022191,2]
[388578047,1759245063806,-731.2,0.00022191,2]
[388578048,1759245063816,-740.62,0.00022191,2]
[388578049,1759245063826,-500.0,0.00022191,2]
[388578050,1759245063836,-500.0,0.00022191,2]
[388578051,1759245063846,-834.81,0.00022191,2]
[388578052,1759245063855,-500.0,0.00022191,2]
[388578053,1759245063865,-2266.48,0.00022191,2]
[388578054,1759245063875,-500.0,0.00022191,2]
[388578055,1759245063884,-500.0,0.00022191,2]
[388578056,1759245063894,-533.03,0.00022191,2]
[388578057,1759245063905,-522.16,0.00022191,2]
[388578058,1759245063914,-1168.74,0.00022191,2]
[388578059,1759245063924,-653.75,0.00022191,2]
[388578060,1759245063935,-500.0,0.00022191,2]
[388578061,1759245063944,-500.0,0.00022191,2]
[388578062,1759245063954,-500.0,0.00022191,2]
[388578063,1759245063965,-970.84,0.00022191,2]
[388578064,1759245063975,-1580.86,0.00022191,2]
[388578065,1759245063984,-284.24166275,0.00022191,2]
[388578066,1759245063994,-317.81770821,0.00022191,2]
[388578067,1759245064003,-1807.02,0.00022191,2]
[388578068,1759245064013,-654.09,0.00022191,2]
[388578069,1759245064023,-500.0,0.00022191,2]
[388578070,1759245064035,-2511.69,0.00022191,2]
[388578071,1759245064044,-500.0,0.00022191,2]
[388578072,1759245064054,-500.0,0.00022191,2]
[388578073,1759245064065,-567.53,0.00022191,2]
[388578074,1759245064075,-1342.87,0.00022191,2]
[388578075,1759245064085,-2022.65,0.00022191,2]
[388578076,1759245064095,-1527.54,0.00022191,2]
[388578077,1759245064104,-500.0,0.00022191,2]
[388578078,1759245064114,-500.0,0.00022191,2]
[388578079,1759245064123,-529.15,0.00022191,2]
[388578080,1759245064133,-500.0,0.00022191,2]
[388578081,1759245064142,-500.0,0.00022191,2]
[388578082,1759245064152,-615.54,0.00022191,2]
[388578083,1759245064161,-2819.35,0.00022191,2]
[388578084,1759245064171,-500.0,0.00022191,2]
[388578085,1759245064190,-500.0,0.00022191,2]
[388578086,1759245064200,-500.0,0.00022191,2]
[388578087,1759245064210,-500.0,0.00022191,2]
[388578088,1759245064220,-824.81,0.00022191,2]
[388578089,1759245064230,-500.0,0.00022191,2]
[388578090,1759245064241,-500.0,0.00022191,2]
[388578091,1759245064251,-747.27,0.00022191,2]
[388578092,1759245064261,-754.71,0.00022191,2]
[388578093,1759245064271,-500.0,0.00022191,2]
[388578094,1759245064283,-670.53,0.00022191,2]
[388578095,1759245064293,-1983.65,0.00022191,2]
[388578096,1759245064304,-803.43,0.00022191,2]
[388578097,1759245064316,-500.0,0.00022191,2]
[388578098,1759245064326,-688.46,0.00022191,2]
[388578099,1759245064336,-538.24,0.00022191,2]
[388578100,1759245064469,-679.98,0.00022191,2]
[388578101,1759245064482,-500.0,0.00022191,2]
[388578102,1759245064492,-589.27,0.00022191,2]
[388578103,1759245064501,-500.0,0.00022191,2]
[388578104,1759245064511,-535.7,0.00022191,2]
[388578105,1759245064519,-1820.42,0.00022191,2]
[388578106,1759245064528,-2007.42,0.00022191,2]
[388578107,1759245064538,-793.47,0.00022191,2]
[388578108,1759245064547,-2768.25,0.00022191,2]
[388578109,1759245064556,-1506.48,0.00022191,2]
[388578110,1759245064567,-1157.75,0.00022191,2]
[388578111,1759245064576,-629.43,0.00022191,2]
[388578112,1759245064585,-500.0,0.00022191,2]
[388578113,1759245064595,-1285.01,0.00022191,2]
[388578114,1759245064604,-501.17,0.00022191,2]
[388578115,1759245064613,-500.0,0.00022191,2]
[388578116,1759245064622,-500.0,0.00022191,2]
[388578117,1759245064631,-500.0,0.00022191,2]
[388578118,1759245064641,-733.74,0.00022191,2]
[388578119,1759245064650,-1788.96,0.00022191,2]
[388578120,1759245064660,-1345.69,0.00022191,2]
[388578121,1759245064668,-1291.55,0.00022191,2]
[388578122,1759245064677,-500.0,0.00022191,2]
[388578123,1759245064688,-500.0,0.00022191,2]
[388578124,1759245064696,-500.0,0.00022191,2]
[388578125,1759245064706,-1166.68,0.00022191,2]
[388578126,1759245064715,-1602.97,0.00022191,2]
[388578127,1759245064724,-775.21,0.00022191,2]
[388578128,1759245064733,-832.21,0.00022191,2]
[388578129,1759245064742,-500.0,0.00022191,2]
[388578130,1759245064751,-829.71,0.00022191,2]
[388578131,1759245064764,-856.35,0.00022191,2]
[388578132,1759245064773,-805.26,0.00022191,2]
[388578133,1759245064782,-500.0,0.00022191,2]
[388578134,1759245064792,-500.0,0.00022191,2]
[388578135,1759245064802,-151.0,0.000222,5]
[388578136,1759245064813,-2000.0,0.00022216,2]
[388578137,1759245064823,-2000.0,0.00022216,2]
[388578138,1759245064833,-1241.67724553,0.00022216,2]
[388578139,1759245064847,-613.79958107,0.00022216,2]
[388578140,1759245064858,-2000.0,0.00022216,2]
[388578141,1759245064867,-333.42618888,0.00022368,7]
[388578142,1759245064876,-200.0,0.00022378,2]
[388578143,1759245064885,-151.0,0.00022378,2]
[388578144,1759245064895,-250.0,0.00022378,2]
[388578145,1759245064904,-200.0,0.00022378,2]
[388578146,1759245064914,-151.0,0.00022378,2]
[388578147,1759245064923,-250.0,0.00022378,2]
[388578148,1759245064932,-200.0,0.00022378,2]
[388578149,1759245064942,-151.0,0.00022378,2]
[388578150,1759245064951,-250.0,0.00022378,2]
[388578151,1759245064960,-200.0,0.00022378,2]
[388578152,1759245064969,-151.0,0.00022378,2]
[388578153,1759245064979,-250.0,0.00022378,2]
[388578154,1759245064988,-200.0,0.00022378,2]